[Event "Early-Titled-Tuesday-Blitz-April-16-2024"]
[Site "Chess.com"]
[Date "2024.04.16"]
[Round "1"]
[White "a-z30"]
[Black "WoolworthsManly"]
[Result "0-1"]
[WhiteElo "2392"]
[BlackElo "2691"]
[TimeControl "180+1"]
[EndTime "8:05:58 PDT"]
[Termination "WoolworthsManly won on time"]

1. d4 {[%clk 0:02:59.4]} 1... Nf6 {[%clk 0:02:59.4]} 2. c4 {[%clk 0:02:59.3]}
2... Nc6 {[%clk 0:02:43.7]} 3. Nf3 {[%clk 0:02:58.1]} 3... d6 {[%clk 0:02:42.9]}
4. Nc3 {[%clk 0:02:53.5]} 4... e5 {[%clk 0:02:42.6]} 5. d5 {[%clk 0:02:48.8]}
5... Ne7 {[%clk 0:02:41.5]} 6. e4 {[%clk 0:02:49.4]} 6... Ng6 {[%clk 0:02:41.1]}
7. g3 {[%clk 0:02:40.8]} 7... h5 {[%clk 0:02:38.8]} 8. h4 {[%clk 0:02:29.5]}
8... Bg4 {[%clk 0:02:35.4]} 9. Be2 {[%clk 0:02:28.5]} 9... Be7 {[%clk
0:02:33.5]} 10. Ng5 {[%clk 0:02:20.9]} 10... Qd7 {[%clk 0:02:24.6]} 11. f3
{[%clk 0:02:17.5]} 11... Be6 {[%clk 0:01:48.8]} 12. dxe6 {[%clk 0:02:16.1]}
12... fxe6 {[%clk 0:01:49]} 13. c5 {[%clk 0:02:02.8]} 13... d5 {[%clk
0:01:44.8]} 14. exd5 {[%clk 0:01:25.5]} 14... exd5 {[%clk 0:01:44.8]} 15. Qc2
{[%clk 0:01:24.8]} 15... Nf8 {[%clk 0:01:43.7]} 16. b4 {[%clk 0:00:53.6]} 16...
a5 {[%clk 0:01:43.2]} 17. Bb5 {[%clk 0:00:41.1]} 17... c6 {[%clk 0:01:43]} 18.
Bd3 {[%clk 0:00:40.7]} 18... Rh6 {[%clk 0:01:29.4]} 19. Na4 {[%clk 0:00:29.3]}
19... Qc7 {[%clk 0:01:11.3]} 20. Nb6 {[%clk 0:00:26.4]} 20... Rd8 {[%clk
0:01:10.4]} 21. a3 {[%clk 0:00:24.2]} 21... e4 {[%clk 0:01:08]} 22. fxe4 {[%clk
0:00:05.6]} 22... Qxg3+ {[%clk 0:01:07.6]} 23. Kf1 {[%clk 0:00:05.9]} 23... Ng4
{[%clk 0:01:06.1]} 24. Qe2 {[%clk 0:00:04]} 24... Rf6+ {[%clk 0:01:04.7]} 0-1

[Event "Early-Titled-Tuesday-Blitz-April-16-2024"]
[Site "Chess.com"]
[Date "2024.04.16"]
[Round "1"]
[White "NikitaShnadrygin"]
[Black "RamonManon0g"]
[Result "1-0"]
[WhiteElo "2732"]
[BlackElo "2424"]
[TimeControl "180+1"]
[EndTime "8:05:59 PDT"]
[Termination "NikitaShnadrygin won by resignation"]

1. e4 {[%clk 0:03:00.9]} 1... c5 {[%clk 0:01:07.8]} 2. Nf3 {[%clk 0:02:59.8]}
2... d6 {[%clk 0:01:07.7]} 3. d4 {[%clk 0:02:59.6]} 3... cxd4 {[%clk 0:01:07.9]}
4. Nxd4 {[%clk 0:03:00.5]} 4... Nf6 {[%clk 0:01:07]} 5. Nc3 {[%clk 0:03:00.6]}
5... a6 {[%clk 0:01:07.9]} 6. Bg5 {[%clk 0:03:00.5]} 6... e6 {[%clk 0:01:08.1]}
7. f4 {[%clk 0:02:59.9]} 7... Be7 {[%clk 0:01:09]} 8. Qf3 {[%clk 0:02:56.2]}
8... Qc7 {[%clk 0:01:09.4]} 9. O-O-O {[%clk 0:02:51]} 9... Nbd7 {[%clk
0:01:09.5]} 10. g4 {[%clk 0:02:49.6]} 10... h6 {[%clk 0:01:09.5]} 11. Bxf6
{[%clk 0:02:49.6]} 11... Bxf6 {[%clk 0:01:07.9]} 12. Bg2 {[%clk 0:02:26.5]}
12... O-O {[%clk 0:01:05.2]} 13. h4 {[%clk 0:02:23]} 13... Bxd4 {[%clk
0:01:02.8]} 14. Rxd4 {[%clk 0:02:22.8]} 14... e5 {[%clk 0:01:03.7]} 15. Rd2
{[%clk 0:02:10.9]} 15... exf4 {[%clk 0:01:03.8]} 16. Qxf4 {[%clk 0:02:05.8]}
16... Ne5 {[%clk 0:01:03.7]} 17. Nd5 {[%clk 0:02:03.4]} 17... Qa5 {[%clk
0:00:59.8]} 18. a3 {[%clk 0:01:45.2]} 18... Bxg4 {[%clk 0:00:56.2]} 19. Ne7+
{[%clk 0:01:24.4]} 19... Kh8 {[%clk 0:00:55.9]} 20. Rxd6 {[%clk 0:01:24.2]}
20... Kh7 {[%clk 0:00:20.4]} 21. Rd5 {[%clk 0:01:22.8]} 21... Qc7 {[%clk
0:00:10.4]} 22. Qxe5 {[%clk 0:01:19.5]} 22... Qxe5 {[%clk 0:00:10.6]} 23. Rxe5
{[%clk 0:01:20.4]} 23... Be6 {[%clk 0:00:10.8]} 24. Nd5 {[%clk 0:01:16.7]} 24...
Rfd8 {[%clk 0:00:10.2]} 25. Bh3 {[%clk 0:01:15.3]} 25... Bxh3 {[%clk 0:00:09.2]}
26. Rxh3 {[%clk 0:01:16.2]} 26... Rac8 {[%clk 0:00:08.3]} 27. Rf3 {[%clk
0:01:14]} 27... f6 {[%clk 0:00:08.3]} 28. Re7 {[%clk 0:01:14.1]} 28... Rc4
{[%clk 0:00:07.5]} 29. Rg3 {[%clk 0:01:09.6]} 29... Rg8 {[%clk 0:00:06.8]} 30.
Nxf6+ {[%clk 0:01:09.6]} 1-0

[Event "Early-Titled-Tuesday-Blitz-April-16-2024"]
[Site "Chess.com"]
[Date "2024.04.16"]
[Round "1"]
[White "LeninGuerra"]
[Black "Bulatova_Kamaliya"]
[Result "1-0"]
[WhiteElo "2801"]
[BlackElo "2443"]
[TimeControl "180+1"]
[EndTime "8:06:00 PDT"]
[Termination "LeninGuerra won by checkmate"]

1. e4 {[%clk 0:03:00.9]} 1... c5 {[%clk 0:02:58.5]} 2. Nf3 {[%clk 0:03:00.8]}
2... d6 {[%clk 0:02:58.2]} 3. b4 {[%clk 0:02:59.9]} 3... b6 {[%clk 0:02:56.6]}
4. bxc5 {[%clk 0:02:59.7]} 4... bxc5 {[%clk 0:02:56.9]} 5. c3 {[%clk 0:03:00]}
5... Nf6 {[%clk 0:02:38.2]} 6. Bd3 {[%clk 0:02:59.8]} 6... Nbd7 {[%clk
0:02:31.5]} 7. O-O {[%clk 0:02:59.1]} 7... g6 {[%clk 0:02:31.2]} 8. Re1 {[%clk
0:02:58.5]} 8... Bb7 {[%clk 0:02:22.9]} 9. Bc2 {[%clk 0:02:58.3]} 9... Bg7
{[%clk 0:02:20.6]} 10. d4 {[%clk 0:02:58.3]} 10... O-O {[%clk 0:02:16.2]} 11.
Nbd2 {[%clk 0:02:56]} 11... cxd4 {[%clk 0:02:00.5]} 12. cxd4 {[%clk 0:02:55.4]}
12... Rc8 {[%clk 0:01:58.9]} 13. Bb3 {[%clk 0:02:52.8]} 13... Qb6 {[%clk
0:01:43.2]} 14. Bb2 {[%clk 0:02:51.9]} 14... Ba6 {[%clk 0:01:32.6]} 15. e5
{[%clk 0:02:39]} 15... dxe5 {[%clk 0:01:25.5]} 16. dxe5 {[%clk 0:02:39.9]} 16...
Ng4 {[%clk 0:01:25.1]} 17. Bd4 {[%clk 0:02:39.5]} 17... Qb7 {[%clk 0:01:16.2]}
18. e6 {[%clk 0:02:35.9]} 18... Nc5 {[%clk 0:01:06.7]} 19. exf7+ {[%clk
0:02:23]} 19... Kh8 {[%clk 0:01:01.3]} 20. Bxg7+ {[%clk 0:02:20.3]} 20... Kxg7
{[%clk 0:01:01.1]} 21. h3 {[%clk 0:02:01.3]} 21... Nxf2 {[%clk 0:00:48]} 22.
Kxf2 {[%clk 0:02:02.2]} 22... Nd3+ {[%clk 0:00:47.9]} 23. Kg1 {[%clk 0:02:02.3]}
23... Qb6+ {[%clk 0:00:45.1]} 24. Kh2 {[%clk 0:02:01.4]} 24... Qd6+ {[%clk
0:00:37.3]} 25. g3 {[%clk 0:02:00.5]} 25... Nxe1 {[%clk 0:00:14.4]} 26. Qxe1
{[%clk 0:02:00.2]} 26... Rc3 {[%clk 0:00:12]} 27. Rd1 {[%clk 0:01:56.4]} 27...
Qc7 {[%clk 0:00:10.8]} 28. Qe4 {[%clk 0:01:53.5]} 28... Bb7 {[%clk 0:00:08.9]}
29. Qd4+ {[%clk 0:01:51.3]} 29... Kh6 {[%clk 0:00:06.4]} 30. Ne5 {[%clk
0:01:49.8]} 30... g5 {[%clk 0:00:04.7]} 31. Ng4+ {[%clk 0:01:45.6]} 31... Kh5
{[%clk 0:00:03.2]} 32. Nf1 {[%clk 0:01:26.6]} 32... Qd6 {[%clk 0:00:01.9]} 33.
Qxd6 {[%clk 0:01:25.9]} 33... exd6 {[%clk 0:00:02.2]} 34. Rxd6 {[%clk
0:01:26.4]} 34... Rf3 {[%clk 0:00:02.5]} 35. Rh6# {[%clk 0:01:25.7]} 1-0

[Event "Early-Titled-Tuesday-Blitz-April-16-2024"]
[Site "Chess.com"]
[Date "2024.04.16"]
[Round "1"]
[White "MaxLeto"]
[Black "ulises2013"]
[Result "0-1"]
[WhiteElo "2405"]
[BlackElo "2705"]
[TimeControl "180+1"]
[EndTime "8:06:00 PDT"]
[Termination "ulises2013 won on time"]

1. a3 {[%clk 0:00:35.4]} 1... g6 {[%clk 0:03:00.9]} 2. b3 {[%clk 0:00:36.3]}
2... Bg7 {[%clk 0:03:00.7]} 3. c3 {[%clk 0:00:37.2]} 3... c5 {[%clk 0:03:00.8]}
4. d3 {[%clk 0:00:38.1]} 4... d5 {[%clk 0:03:01.5]} 5. e3 {[%clk 0:00:39]} 5...
Nc6 {[%clk 0:03:02.2]} 6. f3 {[%clk 0:00:39.4]} 6... e5 {[%clk 0:03:03]} 7. g3
{[%clk 0:00:40.1]} 7... Nge7 {[%clk 0:03:03.7]} 8. h3 {[%clk 0:00:40.8]} 8...
O-O {[%clk 0:03:04.4]} 9. Bb2 {[%clk 0:00:41.4]} 9... Be6 {[%clk 0:03:05.1]} 10.
Bg2 {[%clk 0:00:42]} 10... Qd7 {[%clk 0:03:05.8]} 11. Ne2 {[%clk 0:00:42.7]}
11... f5 {[%clk 0:03:06.6]} 12. Nd2 {[%clk 0:00:43.3]} 12... Rae8 {[%clk
0:03:07.3]} 13. Qc2 {[%clk 0:00:43.7]} 13... a6 {[%clk 0:03:07]} 14. O-O-O
{[%clk 0:00:43.4]} 14... b5 {[%clk 0:03:07.4]} 15. Kb1 {[%clk 0:00:44.1]} 15...
Qd6 {[%clk 0:03:07.8]} 16. e4 {[%clk 0:00:43.9]} 16... d4 {[%clk 0:03:07.9]} 17.
c4 {[%clk 0:00:43.3]} 17... b4 {[%clk 0:03:07.2]} 18. a4 {[%clk 0:00:43.6]}
18... Rf7 {[%clk 0:03:05.2]} 19. h4 {[%clk 0:00:40.9]} 19... Ref8 {[%clk
0:03:05.2]} 20. h5 {[%clk 0:00:41.2]} 20... g5 {[%clk 0:03:05.1]} 21. exf5
{[%clk 0:00:41]} 21... Nxf5 {[%clk 0:03:05.3]} 22. Ne4 {[%clk 0:00:40.6]} 22...
Qe7 {[%clk 0:03:04.7]} 23. h6 {[%clk 0:00:27.5]} 23... Nxh6 {[%clk 0:03:00.2]}
24. g4 {[%clk 0:00:21.7]} 24... Kh8 {[%clk 0:02:46.9]} 25. Rh5 {[%clk
0:00:21.9]} 25... Nd8 {[%clk 0:02:32.7]} 26. Rdh1 {[%clk 0:00:20.5]} 26... Rf6
{[%clk 0:02:30.8]} 27. Bc1 {[%clk 0:00:18.2]} 27... Rg6 {[%clk 0:02:29.8]} 28.
Bxg5 {[%clk 0:00:17.9]} 28... Rxg5 {[%clk 0:02:30.3]} 29. Nxg5 {[%clk
0:00:18.2]} 29... Rf6 {[%clk 0:02:27.8]} 30. Ne4 {[%clk 0:00:17.7]} 30... Rg6
{[%clk 0:02:26.8]} 31. Qd2 {[%clk 0:00:16.8]} 31... Ndf7 {[%clk 0:02:25.6]} 32.
N2g3 {[%clk 0:00:11.6]} 32... Kg8 {[%clk 0:02:24.2]} 33. Kc2 {[%clk 0:00:04]}
33... a5 {[%clk 0:02:24.5]} 34. R1h2 {[%clk 0:00:04.1]} 34... Qf8 {[%clk
0:02:21.3]} 35. Rh1 {[%clk 0:00:04]} 35... Bc8 {[%clk 0:02:16.5]} 36. Ng5 {[%clk
0:00:03.4]} 36... Nd8 {[%clk 0:02:10.7]} 37. N3e4 {[%clk 0:00:03]} 37... Bd7
{[%clk 0:02:07.4]} 38. Nxh7 {[%clk 0:00:03.6]} 38... Kxh7 {[%clk 0:02:06.4]} 39.
g5 {[%clk 0:00:04.3]} 39... Ne6 {[%clk 0:02:01.7]} 40. gxh6 {[%clk 0:00:01.9]}
40... Bf6 {[%clk 0:02:02.2]} 41. Bh3 {[%clk 0:00:02.2]} 41... Kh8 {[%clk
0:01:58.8]} 42. Bxe6 {[%clk 0:00:02.5]} 42... Bxe6 {[%clk 0:01:58.5]} 43. h7
{[%clk 0:00:03]} 43... Bg7 {[%clk 0:01:57.7]} 44. Qh2 {[%clk 0:00:02.7]} 44...
Qxf3 {[%clk 0:01:56.7]} 45. Rxe5 {[%clk 0:00:02.9]} 45... Rg2+ {[%clk
0:01:56.7]} 46. Qxg2 {[%clk 0:00:02.4]} 46... Qxg2+ {[%clk 0:01:57.6]} 47. Nd2
{[%clk 0:00:02.5]} 47... Bxe5 {[%clk 0:01:57.5]} 48. Re1 {[%clk 0:00:03.1]}
48... Bf4 {[%clk 0:01:57.8]} 49. Rd1 {[%clk 0:00:03.4]} 49... Bg4 {[%clk
0:01:57.8]} 0-1

[Event "Early-Titled-Tuesday-Blitz-April-16-2024"]
[Site "Chess.com"]
[Date "2024.04.16"]
[Round "1"]
[White "KanalSzachowy"]
[Black "tsaruk_maks"]
[Result "0-1"]
[WhiteElo "2419"]
[BlackElo "2722"]
[TimeControl "180+1"]
[EndTime "8:06:02 PDT"]
[Termination "tsaruk_maks won by resignation"]

1. e4 {[%clk 0:03:00.9]} 1... e5 {[%clk 0:02:59.1]} 2. Nf3 {[%clk 0:03:00.1]}
2... Nc6 {[%clk 0:02:58]} 3. Bc4 {[%clk 0:03:00.3]} 3... Bc5 {[%clk 0:02:51.3]}
4. c3 {[%clk 0:02:59.9]} 4... Nf6 {[%clk 0:02:51.3]} 5. d4 {[%clk 0:03:00]} 5...
exd4 {[%clk 0:02:51.7]} 6. cxd4 {[%clk 0:03:00.9]} 6... Bb4+ {[%clk 0:02:50.5]}
7. Nbd2 {[%clk 0:03:00.8]} 7... Bxd2+ {[%clk 0:02:46.4]} 8. Bxd2 {[%clk
0:02:54.2]} 8... Nxe4 {[%clk 0:02:45.9]} 9. d5 {[%clk 0:02:54.5]} 9... Ne7
{[%clk 0:02:44.5]} 10. Bb4 {[%clk 0:02:49.3]} 10... a5 {[%clk 0:02:41.2]} 11. d6
{[%clk 0:02:25.2]} 11... axb4 {[%clk 0:02:38.9]} 12. dxe7 {[%clk 0:02:25.2]}
12... Qxe7 {[%clk 0:02:39.8]} 13. O-O {[%clk 0:02:24.9]} 13... c6 {[%clk
0:02:24.5]} 14. Re1 {[%clk 0:01:44.5]} 14... d5 {[%clk 0:02:24.8]} 15. Bxd5
{[%clk 0:01:26.6]} 15... cxd5 {[%clk 0:02:25.7]} 16. Qxd5 {[%clk 0:01:26.9]}
16... f5 {[%clk 0:02:26.4]} 17. Nd4 {[%clk 0:01:25.3]} 17... Ra6 {[%clk
0:01:44.7]} 18. Rac1 {[%clk 0:01:08.1]} 18... Qd7 {[%clk 0:01:15.1]} 19. Qe5+
{[%clk 0:00:40.4]} 19... Kd8 {[%clk 0:01:15.3]} 20. Red1 {[%clk 0:00:19.8]}
20... Re8 {[%clk 0:01:09.7]} 21. Ne6+ {[%clk 0:00:18.2]} 21... Raxe6 {[%clk
0:01:00.4]} 22. Rxd7+ {[%clk 0:00:18.8]} 22... Bxd7 {[%clk 0:01:00.3]} 23. Qc7+
{[%clk 0:00:19.4]} 23... Ke7 {[%clk 0:01:00.2]} 24. f3 {[%clk 0:00:18.8]} 24...
Nd6 {[%clk 0:00:56.1]} 25. Kf2 {[%clk 0:00:16]} 25... Rc8 {[%clk 0:00:56.1]} 0-1

[Event "Early-Titled-Tuesday-Blitz-April-16-2024"]
[Site "Chess.com"]
[Date "2024.04.16"]
[Round "1"]
[White "cansun"]
[Black "The_Sherman_Variation"]
[Result "0-1"]
[WhiteElo "2417"]
[BlackElo "2716"]
[TimeControl "180+1"]
[EndTime "8:06:02 PDT"]
[Termination "The_Sherman_Variation won by checkmate"]

1. d4 {[%clk 0:02:58.2]} 1... Nf6 {[%clk 0:02:57.7]} 2. c4 {[%clk 0:02:58.2]}
2... g6 {[%clk 0:02:57.1]} 3. Nc3 {[%clk 0:02:56.6]} 3... Bg7 {[%clk 0:02:57.4]}
4. e4 {[%clk 0:02:56.8]} 4... d6 {[%clk 0:02:57.4]} 5. f3 {[%clk 0:02:57.1]}
5... O-O {[%clk 0:02:56.9]} 6. Be3 {[%clk 0:02:57.1]} 6... e5 {[%clk 0:02:54]}
7. Nge2 {[%clk 0:02:57.2]} 7... Nc6 {[%clk 0:02:53.9]} 8. d5 {[%clk 0:02:57.6]}
8... Ne7 {[%clk 0:02:54.1]} 9. Qd2 {[%clk 0:02:57.8]} 9... Ne8 {[%clk
0:02:50.2]} 10. g4 {[%clk 0:02:50.8]} 10... c5 {[%clk 0:02:41]} 11. O-O-O {[%clk
0:02:43.1]} 11... a6 {[%clk 0:02:38.6]} 12. Ng3 {[%clk 0:02:37]} 12... Bd7
{[%clk 0:02:36.6]} 13. Kb1 {[%clk 0:02:35.5]} 13... b5 {[%clk 0:02:34.7]} 14.
cxb5 {[%clk 0:02:35.4]} 14... axb5 {[%clk 0:02:35.6]} 15. Bxb5 {[%clk
0:02:32.8]} 15... Bxb5 {[%clk 0:02:29.9]} 16. Nxb5 {[%clk 0:02:33.4]} 16... Qb6
{[%clk 0:02:30.2]} 17. Nc3 {[%clk 0:02:28.7]} 17... Nc7 {[%clk 0:02:30]} 18. h4
{[%clk 0:02:23.3]} 18... Rfb8 {[%clk 0:02:24.3]} 19. h5 {[%clk 0:02:13]} 19...
Nb5 {[%clk 0:02:17.9]} 20. Nxb5 {[%clk 0:02:08.9]} 20... Qxb5 {[%clk 0:02:18.8]}
21. hxg6 {[%clk 0:01:59.3]} 21... fxg6 {[%clk 0:01:05.7]} 22. Rh2 {[%clk
0:01:53.7]} 22... Qa4 {[%clk 0:01:03.1]} 23. a3 {[%clk 0:00:11.4]} 23... Qxa3
{[%clk 0:01:02.1]} 24. Qd3 {[%clk 0:00:12.1]} 24... Qa1+ {[%clk 0:00:59.3]} 25.
Kc2 {[%clk 0:00:12.8]} 25... Qxb2# {[%clk 0:00:59.9]} 0-1

[Event "Early-Titled-Tuesday-Blitz-April-16-2024"]
[Site "Chess.com"]
[Date "2024.04.16"]
[Round "1"]
[White "kecalk"]
[Black "AryanTari"]
[Result "0-1"]
[WhiteElo "2510"]
[BlackElo "2934"]
[TimeControl "180+1"]
[EndTime "8:06:03 PDT"]
[Termination "AryanTari won by resignation"]

1. d4 {[%clk 0:02:58.8]} 1... d5 {[%clk 0:02:50.4]} 2. c4 {[%clk 0:02:57.3]}
2... e6 {[%clk 0:02:49.7]} 3. Nc3 {[%clk 0:02:56.1]} 3... Nf6 {[%clk 0:02:45]}
4. cxd5 {[%clk 0:02:45.3]} 4... exd5 {[%clk 0:02:45.9]} 5. Bg5 {[%clk
0:02:45.6]} 5... Be6 {[%clk 0:02:28.2]} 6. e3 {[%clk 0:02:38.1]} 6... Nbd7
{[%clk 0:02:28.2]} 7. Bd3 {[%clk 0:02:33.6]} 7... c6 {[%clk 0:02:26.2]} 8. Nge2
{[%clk 0:02:21.5]} 8... h6 {[%clk 0:02:23.5]} 9. Bh4 {[%clk 0:02:10.1]} 9... Bd6
{[%clk 0:02:16.7]} 10. Bg3 {[%clk 0:02:07.7]} 10... Qb8 {[%clk 0:02:12.9]} 11.
O-O {[%clk 0:02:03.6]} 11... Nh5 {[%clk 0:01:53.7]} 12. Bxd6 {[%clk 0:01:57.4]}
12... Qxd6 {[%clk 0:01:54.6]} 13. b4 {[%clk 0:01:47.6]} 13... O-O {[%clk
0:01:46.7]} 14. b5 {[%clk 0:01:40.9]} 14... c5 {[%clk 0:01:28.4]} 15. dxc5
{[%clk 0:01:40.3]} 15... Nxc5 {[%clk 0:01:28.6]} 16. Nd4 {[%clk 0:01:38.2]}
16... Nf6 {[%clk 0:01:26.2]} 17. Be2 {[%clk 0:01:28]} 17... Rac8 {[%clk
0:01:24.8]} 18. Rc1 {[%clk 0:01:28.5]} 18... Rc7 {[%clk 0:01:23.6]} 19. Bf3
{[%clk 0:01:28.7]} 19... Rfc8 {[%clk 0:01:23.6]} 20. Qd2 {[%clk 0:01:18]} 20...
Ncd7 {[%clk 0:01:06.5]} 21. Nce2 {[%clk 0:01:08.4]} 21... Ne5 {[%clk 0:01:06.6]}
22. Nf4 {[%clk 0:01:08.3]} 22... Bd7 {[%clk 0:00:59]} 23. Be2 {[%clk 0:00:42.2]}
23... Ne4 {[%clk 0:00:56]} 24. Qb2 {[%clk 0:00:40.9]} 24... Nc3 {[%clk
0:00:56.1]} 25. Rfe1 {[%clk 0:00:28.8]} 25... Rc5 {[%clk 0:00:47.7]} 26. Nd3
{[%clk 0:00:20.5]} 26... Nxe2+ {[%clk 0:00:46.3]} 0-1

[Event "Early-Titled-Tuesday-Blitz-April-16-2024"]
[Site "Chess.com"]
[Date "2024.04.16"]
[Round "1"]
[White "Aminazinas"]
[Black "SpongeBob_03"]
[Result "0-1"]
[WhiteElo "2570"]
[BlackElo "2234"]
[TimeControl "180+1"]
[EndTime "8:06:03 PDT"]
[Termination "SpongeBob_03 won by checkmate"]

1. e4 {[%clk 0:02:59.7]} 1... c5 {[%clk 0:01:32.1]} 2. Nc3 {[%clk 0:02:57.7]}
2... g6 {[%clk 0:01:30.9]} 3. f4 {[%clk 0:02:57.7]} 3... Bg7 {[%clk 0:01:30.3]}
4. Nf3 {[%clk 0:02:58.1]} 4... Nc6 {[%clk 0:01:30.2]} 5. Bc4 {[%clk 0:02:58]}
5... e6 {[%clk 0:01:30.3]} 6. O-O {[%clk 0:02:57.7]} 6... Nge7 {[%clk
0:01:30.6]} 7. d3 {[%clk 0:02:57.9]} 7... O-O {[%clk 0:01:30.9]} 8. Qe1 {[%clk
0:02:58.3]} 8... d5 {[%clk 0:01:31.4]} 9. Bb3 {[%clk 0:02:58.5]} 9... a6 {[%clk
0:01:31]} 10. a4 {[%clk 0:02:58.4]} 10... Re8 {[%clk 0:01:24]} 11. f5 {[%clk
0:02:57.8]} 11... exf5 {[%clk 0:01:23.2]} 12. Nxd5 {[%clk 0:02:57.1]} 12... Nxd5
{[%clk 0:01:22.8]} 13. Bxd5 {[%clk 0:02:57.1]} 13... fxe4 {[%clk 0:01:19.5]} 14.
dxe4 {[%clk 0:02:53.4]} 14... Be6 {[%clk 0:01:18.3]} 15. Bxe6 {[%clk 0:02:49.6]}
15... Rxe6 {[%clk 0:01:19.2]} 16. Ng5 {[%clk 0:02:48.6]} 16... Re7 {[%clk
0:01:19.6]} 17. c3 {[%clk 0:02:46.1]} 17... h6 {[%clk 0:01:17.7]} 18. Nf3 {[%clk
0:02:45.7]} 18... Qe8 {[%clk 0:01:16.2]} 19. Qf2 {[%clk 0:02:42.2]} 19... Rxe4
{[%clk 0:01:16]} 20. Qxc5 {[%clk 0:02:41.2]} 20... Rd8 {[%clk 0:01:15.4]} 21.
Bd2 {[%clk 0:02:32]} 21... Ne5 {[%clk 0:01:12.1]} 22. Nxe5 {[%clk 0:02:27.5]}
22... Rxe5 {[%clk 0:01:10.9]} 23. Qf2 {[%clk 0:02:14.8]} 23... Re2 {[%clk
0:01:11]} 24. Rae1 {[%clk 0:02:15.1]} 24... Rdxd2 {[%clk 0:01:09.8]} 25. Rxe2
{[%clk 0:02:14.3]} 25... Rxe2 {[%clk 0:01:10.7]} 26. Qb6 {[%clk 0:02:13.5]}
26... Qe4 {[%clk 0:01:07]} 27. Rf3 {[%clk 0:02:12]} 27... Re1+ {[%clk
0:01:04.9]} 28. Kf2 {[%clk 0:02:12.3]} 28... Qe2+ {[%clk 0:01:03]} 29. Kg3
{[%clk 0:02:12.5]} 29... Be5+ {[%clk 0:01:03.3]} 30. Kh3 {[%clk 0:02:12.7]}
30... Rh1 {[%clk 0:00:54.5]} 31. Qd8+ {[%clk 0:01:53.9]} 31... Kg7 {[%clk
0:00:54.3]} 32. Rxf7+ {[%clk 0:01:54.1]} 32... Kxf7 {[%clk 0:00:52.6]} 33. Qd7+
{[%clk 0:01:52.5]} 33... Kf6 {[%clk 0:00:52.9]} 34. Qd8+ {[%clk 0:01:52.7]}
34... Kf5 {[%clk 0:00:53]} 35. Qd7+ {[%clk 0:01:51.4]} 35... Ke4 {[%clk
0:00:41.4]} 36. Qxb7+ {[%clk 0:01:50.7]} 36... Ke3 {[%clk 0:00:41.5]} 37. Qb6+
{[%clk 0:01:48.8]} 37... Kd2 {[%clk 0:00:40.8]} 38. Qd8+ {[%clk 0:01:47.6]}
38... Qd3+ {[%clk 0:00:40.8]} 39. Qxd3+ {[%clk 0:01:46.4]} 39... Kxd3 {[%clk
0:00:41.7]} 40. b4 {[%clk 0:01:46.9]} 40... Rxh2+ {[%clk 0:00:41.4]} 41. Kg4
{[%clk 0:01:47.2]} 41... Rxg2+ {[%clk 0:00:42.1]} 42. Kh4 {[%clk 0:01:47.3]}
42... g5+ {[%clk 0:00:41.2]} 43. Kh5 {[%clk 0:01:47.5]} 43... Rh2+ {[%clk
0:00:40.7]} 44. Kg4 {[%clk 0:01:47.6]} 44... Bf4 {[%clk 0:00:37.2]} 45. b5
{[%clk 0:01:47.9]} 45... h5+ {[%clk 0:00:36.9]} 46. Kf5 {[%clk 0:01:47.9]} 46...
axb5 {[%clk 0:00:35.8]} 47. axb5 {[%clk 0:01:48.1]} 47... Kxc3 {[%clk
0:00:36.3]} 48. b6 {[%clk 0:01:48.3]} 48... Rb2 {[%clk 0:00:36.7]} 49. Kg6
{[%clk 0:01:49.2]} 49... Rxb6+ {[%clk 0:00:36.6]} 50. Kxh5 {[%clk 0:01:50.1]}
50... Kd4 {[%clk 0:00:35.2]} 51. Kg4 {[%clk 0:01:51]} 51... Ke5 {[%clk
0:00:35.4]} 52. Kh5 {[%clk 0:01:51.4]} 52... Ke4 {[%clk 0:00:34.4]} 53. Kg4
{[%clk 0:01:51.8]} 53... Rb8 {[%clk 0:00:34.3]} 54. Kh5 {[%clk 0:01:52.1]} 54...
Rh8+ {[%clk 0:00:35]} 55. Kg4 {[%clk 0:01:52.5]} 55... Rh4# {[%clk 0:00:35.2]}
0-1

[Event "Early-Titled-Tuesday-Blitz-April-16-2024"]
[Site "Chess.com"]
[Date "2024.04.16"]
[Round "1"]
[White "GoltsevDmitry2000"]
[Black "stasOR4ik"]
[Result "1-0"]
[WhiteElo "2784"]
[BlackElo "2442"]
[TimeControl "180+1"]
[EndTime "8:06:05 PDT"]
[Termination "GoltsevDmitry2000 won by checkmate"]

1. e4 {[%clk 0:03:00.2]} 1... e6 {[%clk 0:02:59.6]} 2. d4 {[%clk 0:03:00.1]}
2... d5 {[%clk 0:03:00.5]} 3. exd5 {[%clk 0:03:01]} 3... exd5 {[%clk 0:03:01.2]}
4. Nf3 {[%clk 0:03:01.7]} 4... Bd6 {[%clk 0:03:01.6]} 5. c4 {[%clk 0:03:02]}
5... dxc4 {[%clk 0:02:59.1]} 6. Bxc4 {[%clk 0:03:01.7]} 6... Nf6 {[%clk
0:02:58.9]} 7. Nc3 {[%clk 0:03:00.1]} 7... O-O {[%clk 0:02:58.8]} 8. O-O {[%clk
0:02:55.8]} 8... h6 {[%clk 0:02:58.8]} 9. Qd3 {[%clk 0:02:50.9]} 9... c6 {[%clk
0:02:54.6]} 10. Re1 {[%clk 0:02:48.4]} 10... Na6 {[%clk 0:02:46.3]} 11. a3
{[%clk 0:02:48]} 11... Nc7 {[%clk 0:02:46.1]} 12. Bxh6 {[%clk 0:02:38.9]} 12...
Be6 {[%clk 0:02:25.4]} 13. Bg5 {[%clk 0:02:32.1]} 13... Be7 {[%clk 0:02:03.8]}
14. Ne5 {[%clk 0:02:27.5]} 14... Nfd5 {[%clk 0:01:54.4]} 15. Bxe7 {[%clk
0:02:19.7]} 15... Qxe7 {[%clk 0:01:54.2]} 16. Ne4 {[%clk 0:02:17.1]} 16... Nf4
{[%clk 0:01:39.6]} 17. Qf3 {[%clk 0:02:09.4]} 17... Bxc4 {[%clk 0:01:39.2]} 18.
Qxf4 {[%clk 0:02:09.3]} 18... Bd5 {[%clk 0:01:33.8]} 19. Ng3 {[%clk 0:02:01.6]}
19... Ne6 {[%clk 0:01:32.2]} 20. Qg4 {[%clk 0:01:48.4]} 20... Rad8 {[%clk
0:01:26.7]} 21. Nf5 {[%clk 0:01:44.8]} 21... Qf6 {[%clk 0:01:26.7]} 22. Re3
{[%clk 0:01:41.2]} 22... g6 {[%clk 0:01:18]} 23. Rg3 {[%clk 0:01:32.6]} 23...
Nxd4 {[%clk 0:00:58.4]} 24. Nh6+ {[%clk 0:01:30.6]} 24... Kg7 {[%clk 0:00:57.6]}
25. Qxd4 {[%clk 0:01:30.9]} 25... Be6 {[%clk 0:00:32.6]} 26. Qe3 {[%clk
0:01:27.9]} 26... Rd5 {[%clk 0:00:20.1]} 27. Nhg4 {[%clk 0:01:27.7]} 27... Bxg4
{[%clk 0:00:19.4]} 28. Nxg4 {[%clk 0:01:28.6]} 28... Qxb2 {[%clk 0:00:19.7]} 29.
Re1 {[%clk 0:01:28.6]} 29... Rfd8 {[%clk 0:00:18.1]} 30. Qh6+ {[%clk 0:01:24.4]}
30... Kg8 {[%clk 0:00:16.3]} 31. Rge3 {[%clk 0:01:24.2]} 31... Rf8 {[%clk
0:00:04.8]} 32. Re8 {[%clk 0:01:20.9]} 32... Qg7 {[%clk 0:00:04.8]} 33. Nf6+
{[%clk 0:01:20.1]} 33... Qxf6 {[%clk 0:00:04.4]} 34. Rxf8# {[%clk 0:01:20.4]}
1-0